lending/lending_fUSD_20260312
["ID","MTS","AMOUNT","RATE_DAILY","PERIOD"]
[408283717,1773351042562,-520.0,0.00017948,2]
[408283718,1773351042572,-500.0,0.00017972,2]
[408283719,1773351042582,-524.0,0.00018003,2]
[408283720,1773351042593,-354.90199074,0.00018027,2]
[408283721,1773351042603,-736.0,0.00018133,2]
[408283722,1773351042612,-172.02600898,0.00018134,2]
[408283723,1773351042621,-249.28,0.00018213,2]
[408283724,1773351042630,-3000.0,0.0001822,2]
[408283725,1773351042639,-152.17,0.00018272,2]
[408283726,1773351042650,-15776.64529517,0.00018347,2]
[408283727,1773351042660,-150.0,0.00018589,2]
[408283728,1773351042669,-202.690585,0.00018591,2]
[408283729,1773351042679,-160.0,0.00018744,2]
[408283730,1773351042689,-500.0,0.00018768,2]
[408283731,1773351042701,-350.0,0.00019,2]
[408283732,1773351042712,-1176.23,0.0001902,2]
[408283733,1773351042721,-250.0,0.00019089,2]
[408283734,1773351042731,-152.17,0.00019142,2]
[408283735,1773351042740,-507.0,0.00019172,4]
[408283736,1773351042749,-3000.0,0.00019178,2]
[408283737,1773351042759,-3010.28485316,0.00019178,2]
[408283738,1773351042768,-300.0,0.00019178,2]
[408283739,1773351042778,-3292.0,0.0001923,2]
[408283740,1773351042787,-15776.64529517,0.00019316,2]
[408283742,1773351042797,-500.0,0.00019342,2]
[408283744,1773351042807,-6347.0,0.00019366,2]
[408283745,1773351042816,-222.07,0.00019383,2]
[408283746,1773351042825,-6444.81761445,0.0001944,2]
[408283747,1773351042835,-320.0,0.00019537,2]
[408283748,1773351042846,-249.28,0.00019683,2]
[408283749,1773351042857,-350.0,0.000198,2]
[408283750,1773351042868,-2954.42978653,0.0001981,2]
[408283751,1773351042878,-1000.0,0.00019829,2]
[408283752,1773351042887,-200.0,0.000199,2]
[408283753,1773351042897,-3000.0,0.000199,7]
[408283754,1773351042908,-373.86399521,0.000199,2]
[408283755,1773351042918,-166.22736207,0.000199,2]
[408283756,1773351042927,-10496.11,0.00019902,2]
[408283757,1773351042937,-200.0,0.00019941,2]
[408283758,1773351042947,-211.0,0.00019955,2]
[408283759,1773351042956,-200.0,0.0001998,2]
[408283760,1773351042966,-300.0,0.00019984,2]
[408283761,1773351042975,-229.15310187,0.00019984,2]
[408283762,1773351042984,-666.0,0.00019984,2]
[408283763,1773351042993,-448874.5652028,0.00019985,2]
[408283764,1773351043002,-151.0,0.00019985,2]
[408283766,1773351043011,-215.896388,0.00019985,2]
[408283768,1773351043020,-151.0,0.00019985,2]
[408283769,1773351043029,-207.317476,0.00019985,2]
[408283770,1773351043038,-207.317476,0.00019985,2]
[408283771,1773351043047,-207.317476,0.00019985,2]
[408283772,1773351043055,-207.317476,0.00019985,2]
[408283773,1773351043065,-151.0,0.00019985,2]
[408283774,1773351043075,-3678.1248252,0.00019985,2]
[408283775,1773351043084,-151.0,0.00019997,2]
[408283776,1773351043093,-300.0,0.00019999,2]
[408283777,1773351043103,-666.0,0.00019999,2]
[408283778,1773351043112,-500.0,0.00019999,2]
[408283779,1773351043120,-500.0,0.00019999,2]
[408283780,1773351043130,-500.0,0.00019999,2]
[408283781,1773351043139,-271.2,0.00019999,2]
[408283782,1773351043148,-558.0,0.0002,2]
[408283783,1773351043157,-227339.466241,0.0002,2]
[408283784,1773351043175,-331.43,0.0002,2]
[408283785,1773351043191,-197.23311885,0.000199,2]
[408283786,1773351043203,-717.46232976,0.0002,2]
[408283787,1773351043214,-336.030554,0.0002,2]
[408283788,1773351043229,-4102.97773953,0.0002,2]
[408283789,1773351043242,-993656.86459135,0.0002,2]
[408283790,1773351043251,-45628.40575783,0.0002,2]
[408283791,1773351043261,-1476.14960009,0.0002,5]
[408283792,1773351043272,-961585.21528285,0.0002,2]
[408283793,1773351043425,-151.0,0.0002,2]
[408283794,1773351043435,-151.0,0.0002,2]
[408283795,1773351043447,-151.0,0.0002,2]
[408283796,1773351043456,-151.0,0.0002,2]
[408283797,1773351043466,-151.0,0.0002,2]
[408283798,1773351043476,-151.0,0.0002,2]
[408283799,1773351043486,-151.0,0.0002,2]
[408283800,1773351043497,-151.0,0.0002,2]
[408283801,1773351043507,-151.0,0.0002,2]
[408283802,1773351043517,-260.138692,0.0002,2]
[408283803,1773351043527,-151.0,0.0002,2]
[408283804,1773351043536,-151.0,0.0002,2]
[408283805,1773351043546,-151.0,0.0002,2]
[408283806,1773351043556,-207.317476,0.0002,2]
[408283807,1773351043565,-207.317476,0.0002,2]
[408283808,1773351043575,-207.317476,0.0002,2]
[408283809,1773351043584,-207.317476,0.0002,2]
[408283810,1773351043594,-151.0,0.0002,2]
[408283811,1773351043604,-151.0,0.0002,2]
[408283812,1773351043614,-219.47681528,0.0002,7]
[408283813,1773351043623,-252.89333695,0.0002,2]
[408283814,1773351043635,-200.0,0.0002,2]
[408283815,1773351043644,-152.17,0.00020012,2]
[408283816,1773351043653,-427.0,0.00020015,2]
[408283817,1773351043662,-427.0,0.0002002,2]
[408283818,1773351043674,-427.0,0.00020021,2]
[408283819,1773351043684,-260.0,0.00020152,2]
[408283820,1773351043693,-427.0,0.00020182,2]
[408283821,1773351043702,-427.0,0.000202,2]
[408283822,1773351043711,-427.0,0.00020205,2]
[408283823,1773351043720,-427.0,0.00020236,2]
[408283824,1773351043730,-427.0,0.00020267,2]
[408283825,1773351043739,-15776.64529517,0.00020284,2]
[408283826,1773351043748,-427.0,0.00020304,2]
[408283827,1773351043757,-2000.0,0.00020506,2]
[408283828,1773351043767,-9000.0,0.00020551,2]
[408283829,1773351043776,-500.0,0.00020551,2]
[408283830,1773351043786,-500.0,0.00020551,2]
[408283831,1773351043795,-250.0,0.00020551,2]
[408283832,1773351043805,-186.58017813,0.00020551,2]
[408283833,1773351043815,-250.0,0.00020551,2]
[408283834,1773351043824,-250.0,0.00020551,2]
[408283835,1773351043833,-250.0,0.00020551,2]
[408283836,1773351043844,-250.0,0.00020551,2]
[408283837,1773351043853,-250.0,0.00020551,2]
[408283838,1773351043865,-1500.0,0.00020551,2]
[408283839,1773351043874,-1500.0,0.00020551,2]
[408283840,1773351043885,-250.0,0.00020551,2]
[408283841,1773351043895,-1500.0,0.00020551,2]
[408283842,1773351043904,-250.0,0.00020551,2]
[408283843,1773351043914,-250.0,0.00020551,2]
[408283844,1773351043926,-1500.0,0.00020551,2]
[408283845,1773351043935,-250.0,0.00020551,2]
[408283846,1773351043945,-1500.0,0.00020551,2]
[408283847,1773351043954,-250.0,0.00020551,2]
[408283848,1773351043963,-250.0,0.00020551,2]
[408283849,1773351043972,-250.0,0.00020551,2]
[408283850,1773351043981,-1500.0,0.00020551,2]
[408283851,1773351043990,-500.0,0.00020551,2]
[408283852,1773351043999,-378.50205694,0.00020551,2]
[408283853,1773351044008,-250.0,0.00020551,2]
[408283854,1773351044017,-1500.0,0.00020551,2]
[408283855,1773351044026,-500.0,0.00020551,2]
[408283856,1773351044035,-250.0,0.00020551,2]
[408283857,1773351044044,-500.0,0.00020551,2]
[408283858,1773351044054,-1500.0,0.00020551,2]
[408283859,1773351044064,-250.0,0.00020551,2]
[408283860,1773351044074,-1500.0,0.00020551,2]
[408283861,1773351044083,-500.0,0.00020551,2]
[408283862,1773351044092,-250.0,0.00020551,2]
[408283863,1773351044102,-1500.0,0.00020551,2]
[408283864,1773351044113,-250.0,0.00020551,2]
[408283865,1773351044123,-500.0,0.00020551,2]
[408283866,1773351044133,-1500.0,0.00020551,2]
[408283867,1773351044143,-250.0,0.00020551,2]
[408283868,1773351044152,-500.0,0.00020551,2]
[408283869,1773351044162,-250.0,0.00020551,2]
[408283870,1773351044171,-500.0,0.00020551,2]
[408283871,1773351044181,-250.0,0.00020551,2]
[408283872,1773351044192,-500.0,0.00020551,2]
[408283873,1773351044204,-500.0,0.00020551,2]
[408283874,1773351044214,-578.20924308,0.00020551,2]
[408283875,1773351044223,-500.0,0.00020551,2]
[408283876,1773351044232,-500.0,0.00020551,2]
[408283877,1773351044241,-174.61919141,0.00020551,2]
[408283878,1773351044250,-200.0,0.00020551,2]
[408283879,1773351044259,-151.0,0.00020551,2]
[408283880,1773351044269,-500.0,0.00020551,2]
[408283881,1773351044279,-500.0,0.00020551,2]
[408283882,1773351044289,-500.0,0.00020551,2]
[408283883,1773351044299,-500.0,0.00020551,2]
[408283884,1773351044310,-500.0,0.00020551,2]
[408283885,1773351044321,-500.0,0.00020551,2]
[408283886,1773351044330,-500.0,0.00020551,2]
[408283887,1773351044339,-500.0,0.00020551,2]
[408283888,1773351044348,-500.0,0.00020551,2]
[408283889,1773351044360,-500.0,0.00020551,2]
[408283890,1773351044372,-500.0,0.00020551,2]
[408283891,1773351044381,-427.0,0.00020552,2]
[408283892,1773351044391,-200.84,0.000206,2]
[408283893,1773351044403,-427.0,0.00020603,2]
[408283894,1773351044412,-9000.0,0.00020606,2]
[408283895,1773351044422,-500.0,0.00020606,2]
[408283896,1773351044431,-151.0,0.00020606,2]
[408283897,1773351044441,-9000.0,0.00020661,2]
[408283898,1773351044450,-500.0,0.00020661,2]
[408283899,1773351044459,-151.0,0.00020661,2]
[408283900,1773351044469,-427.0,0.00020697,2]
[408283901,1773351044478,-9000.0,0.00020716,2]
[408283902,1773351044487,-500.0,0.00020716,2]
[408283903,1773351044497,-151.0,0.00020716,2]
[408283904,1773351044506,-530.2,0.00020732,2]
[408283905,1773351044515,-1176.23,0.00020749,2]
[408283906,1773351044524,-427.0,0.00020755,2]
[408283907,1773351044534,-9000.0,0.00020771,2]
[408283908,1773351044543,-500.0,0.00020771,2]
[408283909,1773351044552,-151.0,0.00020771,2]
[408283910,1773351044561,-427.0,0.00020809,2]
[408283911,1773351044570,-9000.0,0.00020826,2]
[408283912,1773351044580,-500.0,0.00020826,2]
[408283913,1773351044589,-151.0,0.00020826,2]
[408283914,1773351044598,-3597.0,0.00020829,2]
[408283915,1773351044607,-9000.0,0.00020881,2]
[408283916,1773351044616,-500.0,0.00020881,2]
[408283917,1773351044625,-151.0,0.00020881,2]
[408283918,1773351044634,-152.17,0.00020882,2]
[408283919,1773351044643,-9000.0,0.00020936,2]
[408283920,1773351044652,-500.0,0.00020936,2]
[408283921,1773351044662,-151.0,0.00020936,2]
[408283922,1773351044671,-217.225635,0.00020936,2]
[408283923,1773351044682,-151.0,0.00020936,2]
[408283924,1773351044691,-427.0,0.00020987,2]
[408283925,1773351044701,-500.0,0.00020991,2]
[408283926,1773351044710,-151.0,0.00020991,2]
[408283927,1773351044720,-400.0,0.00021,2]
[408283928,1773351044729,-500.0,0.00021046,2]
[408283929,1773351044739,-151.0,0.00021046,2]
[408283930,1773351044748,-427.0,0.0002105,2]
[408283931,1773351044758,-427.0,0.00021076,2]
[408283932,1773351044768,-172.0,0.00021076,2]
[408283933,1773351044777,-181.08010149,0.00021099,2]
[408283934,1773351044787,-500.0,0.00021101,2]
[408283936,1773351044797,-151.0,0.00021101,2]
[408283937,1773351044806,-479.93,0.00021135,2]
[408283939,1773351044815,-4609.0,0.00021153,2]
[408283941,1773351044824,-1860.86923225,0.00021171,9]
[408283942,1773351044833,-877.62,0.00021237,2]
[408283943,1773351044842,-3597.0,0.00021289,2]
[408283944,1773351044851,-151.0,0.0002129,2]
[408283945,1773351044861,-151.0,0.0002129,2]
[408283946,1773351044870,-207.317476,0.0002129,2]
[408283947,1773351044879,-207.317476,0.0002129,2]
[408283948,1773351044888,-207.317476,0.0002129,2]
[408283949,1773351044898,-207.317476,0.0002129,2]
[408283950,1773351044908,-151.0,0.00021298,2]
[408283951,1773351044918,-427.0,0.00021298,2]
[408283952,1773351044928,-427.0,0.00021341,2]
[408283953,1773351044939,-507.0,0.00021345,6]
[408283954,1773351044949,-427.0,0.0002145,2]
[408283955,1773351044958,-479.93,0.00021454,2]
[408283956,1773351044968,-427.0,0.00021519,2]
[408283957,1773351044978,-151.0,0.00021533,2]
[408283958,1773351044988,-2655.0,0.00021533,2]
[408283959,1773351044997,-2843.0,0.00021533,2]
[408283960,1773351045006,-427.0,0.00021617,2]
[408283961,1773351045016,-427.0,0.00021644,2]
[408283962,1773351045026,-267.52209021,0.00021647,2]
[408283963,1773351045035,-166.19,0.00021664,2]
[408283964,1773351045045,-479.93,0.00021773,2]
[408283965,1773351045054,-172.02600898,0.00021818,2]
[408283966,1773351045063,-300.0,0.00021899,2]
[408283967,1773351045072,-666.0,0.00021899,2]
[408283968,1773351045082,-206630.51735485,0.000219,120]
[408283969,1773351045091,-180.2,0.00021918,2]
[408283970,1773351045101,-5000.0,0.00021918,2]
[408283971,1773351045110,-274.09093539,0.00022057,11]
[408283972,1773351045119,-479.9478825,0.00022092,2]
[408283973,1773351045129,-166.19,0.00022176,2]
[408283974,1773351045138,-425.13,0.00022279,2]
[408283975,1773351045147,-7497.22,0.00022279,2]
[408283976,1773351045157,-820.7005813,0.00022552,2]
[408283977,1773351045166,-166.18221038,0.00022687,2]
[408283978,1773351045175,-247.48115388,0.00022856,2]
[408283979,1773351045185,-450.0,0.00023,2]
[408283980,1773351045195,-151.0,0.0002303,7]
[408283981,1773351045205,-183.1230521,0.00023124,2]
[408283982,1773351045214,-171.03012126,0.00023188,2]
[408283983,1773351045223,-2029.9,0.00023198,2]
[408283984,1773351045235,-5181.0,0.00023268,2]
[408283985,1773351045246,-300.0,0.00023275,2]
[408283987,1773351045256,-100157.4536202,0.00023276,2]
[408283988,1773351045265,-599.60298507,0.0002329,2]
[408283989,1773351045274,-7094.78,0.00023454,2]
[408283990,1773351045286,-507.0,0.00023517,8]
[408283991,1773351045296,-150.08243351,0.00023583,3]
[408283992,1773351045308,-628.64,0.000237,14]
[408283993,1773351045321,-22348.1486663,0.00024011,2]
[408283994,1773351045332,-1066.09713497,0.00024402,5]
[408283995,1773351045344,-1012.83068373,0.00024402,5]
[408283996,1773351045354,-1263.95494944,0.00024402,5]
[408283997,1773351045366,-6444.81761445,0.0002443,2]
[408283998,1773351045377,-1000.0,0.00024658,2]
[408283999,1773351045389,-151.0,0.00024897,7]
[408284000,1773351045401,-1163.99576138,0.00024899,10]
[408284001,1773351045412,-300.0,0.00024899,10]
[408284002,1773351045424,-151.0,0.000249,2]
[408284003,1773351045436,-603007.010942,0.000249,3]
[408284004,1773351045448,-250.0,0.00025,7]
[408284005,1773351045459,-500.0,0.00025,2]
[408284006,1773351045472,-700.0,0.00025198,2]
[408284007,1773351045484,-507.0,0.0002569,10]
[408284008,1773351045496,-539.0,0.00025775,10]
[408284009,1773351045507,-449.42493833,0.00026029,2]
[408284010,1773351045518,-803.0,0.00026767,120]
[408284011,1773351045529,-1954.0,0.00026767,120]
[408284012,1773351045540,-310.0,0.00026767,120]
[408284013,1773351045550,-416.67,0.00026846,2]
[408284014,1773351045560,-1000.0,0.00027397,20]
[408284015,1773351045571,-300.0,0.00027397,2]
[408284016,1773351045584,-12792.86,0.00027397,10]
[408284017,1773351045596,-18984.95,0.00027397,10]
[408284018,1773351045607,-15820.79,0.00027397,10]
[408284019,1773351045618,-13183.99,0.00027397,10]
[408284020,1773351045629,-2034.57040341,0.00027841,25]
[408284021,1773351045640,-507.0,0.00027862,12]
[408284022,1773351045651,-1885.92,0.000286,14]
[408284023,1773351045662,-500.0,0.00028959,2]
[408284025,1773351045674,-6444.81761445,0.0002942,2]
[408284026,1773351045685,-287.24373747,0.00029613,29]
[408284027,1773351045698,-1279.0,0.0002977,2]
[408284028,1773351045710,-1213.0,0.0002977,2]
[408284029,1773351045722,-922.0,0.0002977,2]
[408284030,1773351045734,-5997.0,0.0002977,2]
[408284031,1773351045748,-421.717,0.0002977,2]
[408284032,1773351045759,-2462.0,0.0002977,2]
[408284033,1773351045771,-1000.0,0.00029872,2]
[408284034,1773351045784,-200.37868977,0.0002999,2]
[408284035,1773351045797,-300.0,0.00029999,10]
[408284036,1773351045808,-200000.0,0.0003,120]
[408284037,1773351045821,-200000.0,0.0003,120]
[408284038,1773351045831,-507.0,0.00030034,14]
[408284039,1773351045843,-3129.2822004,0.0003013,2]
[408284040,1773351045854,-198.532113,0.00030137,7]
[408284041,1773351045867,-1000.0,0.00030146,7]
[408284042,1773351045879,-1000.0,0.0003042,7]
[408284043,1773351045893,-1000.0,0.00030694,7]
[408284044,1773351045904,-1000.0,0.00030968,7]
[408284045,1773351045915,-180.2,0.0003105,2]
[408284046,1773351045926,-285.39524426,0.0003106,44]
[408284047,1773351045937,-1000.0,0.00031242,7]
[408284048,1773351045949,-500.0,0.00031363,30]
[408284050,1773351045960,-1000.0,0.00031516,7]
[408284051,1773351045971,-1000.0,0.0003179,7]
[408284052,1773351045982,-171.03012126,0.00031926,2]
[408284053,1773351045992,-1000.0,0.00032064,7]
[408284054,1773351046004,-507.0,0.00032207,16]
[408284055,1773351046014,-1000.0,0.00032338,7]
[408284056,1773351046025,-1000.0,0.00032612,7]
[408284057,1773351046037,-995.0,0.000327,2]
[408284058,1773351046050,-562.0,0.000327,2]
[408284059,1773351046063,-426.394,0.0003277,2]
[408284060,1773351046073,-1446.962,0.0003277,2]
[408284061,1773351046083,-414.0,0.0003277,2]
[408284062,1773351046093,-347.01,0.00032877,2]
[408284063,1773351046104,-1000.0,0.00032886,7]
[408284064,1773351046114,-1963.0,0.0003316,7]
[408284065,1773351046125,-169.44,0.000332,2]
[408284066,1773351046136,-2600.43,0.000332,14]
[408284067,1773351046148,-198.54,0.000332,30]
[408284068,1773351046159,-702.15,0.000332,7]
[408284069,1773351046170,-507.0,0.00034379,18]
[408284070,1773351046182,-6444.81761445,0.00034409,2]
[408284071,1773351046194,-2608.11495112,0.00034512,46]
[408284072,1773351046204,-373.8639952,0.00034745,2]
[408284073,1773351046216,-166.22736207,0.00034745,2]
[408284074,1773351046225,-2029.9,0.0003489,2]
[408284075,1773351046236,-414.0,0.0003577,2]
[408284076,1773351046246,-702.15,0.000359,7]
[408284077,1773351046257,-1571.6,0.000361,30]
[408284078,1773351046267,-507.0,0.00036552,20]
[408284079,1773351046278,-340.1,0.00036893,30]
[408284080,1773351046289,-340.90319685,0.0003717,56]
[408284081,1773351046300,-825.25938507,0.0003788,120]
[408284082,1773351046310,-3000.0,0.000379,13]
[408284083,1773351046320,-5997.77,0.00038034,30]
[408284084,1773351046331,-745.771,0.00038338,51]
[408284085,1773351046342,-300.0,0.00038355,10]
[408284086,1773351046353,-1999.0,0.00038356,120]
[408284087,1773351046368,-3547.71,0.00038356,120]
[408284088,1773351046382,-167.469065,0.00038356,120]
[408284089,1773351046393,-158.861458,0.00038356,120]
[408284090,1773351046406,-158.861458,0.00038356,120]
[408284091,1773351046417,-158.861458,0.00038356,120]
[408284092,1773351046428,-158.861458,0.00038356,120]
[408284093,1773351046439,-158.861458,0.00038356,120]
[408284094,1773351046453,-158.861458,0.00038356,120]
[408284095,1773351046464,-158.861458,0.00038356,120]
[408284096,1773351046475,-158.861458,0.00038356,120]
[408284097,1773351046486,-151.0,0.00038356,120]
[408284098,1773351046496,-151.0,0.00038356,120]
[408284099,1773351046507,-151.0,0.00038356,120]
[408284100,1773351046518,-151.0,0.00038356,120]
[408284101,1773351046530,-151.0,0.00038356,120]
[408284102,1773351046540,-151.0,0.00038356,120]
[408284103,1773351046552,-400.16,0.00038356,120]
[408284104,1773351046566,-400.16,0.00038356,120]
[408284105,1773351046578,-400.16,0.00038356,120]
[408284106,1773351046588,-400.16,0.00038356,120]
[408284107,1773351046599,-400.16,0.00038356,120]
[408284108,1773351046610,-400.16,0.00038356,120]
[408284109,1773351046621,-400.16,0.00038356,120]
[408284110,1773351046632,-400.16,0.00038356,120]
[408284111,1773351046643,-7767.418907,0.00038356,120]
[408284112,1773351046654,-7767.418907,0.00038356,120]
[408284113,1773351046665,-7767.418907,0.00038356,120]
[408284114,1773351046676,-7767.418907,0.00038356,120]
[408284115,1773351046687,-7767.418907,0.00038356,120]
[408284116,1773351046697,-7767.418907,0.00038356,120]
[408284117,1773351046708,-7767.418907,0.00038356,120]
[408284118,1773351046719,-7767.418907,0.00038356,120]
[408284119,1773351046730,-7767.418907,0.00038356,120]
[408284120,1773351046741,-7767.418907,0.00038356,120]
[408284121,1773351046755,-7767.418907,0.00038356,120]
[408284122,1773351046766,-7767.418907,0.00038356,120]
[408284123,1773351046778,-151.0,0.00038356,120]
[408284124,1773351046788,-264.677578,0.00038356,120]
[408284125,1773351046799,-4389.697939,0.00038356,120]
[408284126,1773351046810,-4389.697939,0.00038356,120]
[408284127,1773351046820,-4389.697939,0.00038356,120]
[408284128,1773351046831,-4389.697939,0.00038356,120]
[408284129,1773351046842,-4389.697939,0.00038356,120]
[408284130,1773351046853,-4389.697939,0.00038356,120]
[408284131,1773351046864,-4389.697939,0.00038356,120]
[408284132,1773351046874,-4389.697939,0.00038356,120]
[408284133,1773351046885,-702.15,0.000384,30]
[408284134,1773351046896,-507.0,0.00038724,22]
[408284135,1773351046907,-1999.0,0.00038767,120]
[408284136,1773351046919,-3547.71,0.00038767,120]
[408284137,1773351046930,-414.0,0.0003877,2]
[408284138,1773351046945,-1328.5376,0.00038888,30]
[408284139,1773351046956,-1999.0,0.00039178,120]
[408284140,1773351046967,-3547.71,0.00039178,120]
[408284141,1773351046979,-6444.81761445,0.00039399,2]
[408284142,1773351046991,-2600.43,0.000394,14]
[408284143,1773351047002,-1999.0,0.00039589,120]
[408284144,1773351047014,-3547.71,0.00039589,120]
[408284145,1773351047025,-151.0,0.00039589,120]
[408284146,1773351047036,-1999.0,0.0004,120]
[408284147,1773351047047,-3547.71,0.0004,120]
[408284148,1773351047058,-193.91059004,0.0004,120]
[408284149,1773351047069,-180.0,0.0004,120]
[408284150,1773351047081,-180.2,0.00040183,30]
[408284151,1773351047094,-1999.0,0.0004041,120]
[408284152,1773351047107,-3547.71,0.0004041,120]
[408284153,1773351047119,-171.03012126,0.00040663,2]
[408284154,1773351047133,-702.15,0.000407,30]
[408284155,1773351047144,-1999.0,0.00040821,120]
[408284156,1773351047155,-3547.71,0.00040821,120]
[408284157,1773351047164,-151.0,0.00040821,120]
[408284158,1773351047174,-7767.418907,0.00040821,120]
[408284159,1773351047184,-7767.418907,0.00040821,120]
[408284160,1773351047193,-7767.418907,0.00040821,120]
[408284161,1773351047203,-7767.418907,0.00040821,120]
[408284162,1773351047213,-207.317476,0.00040821,28]
[408284163,1773351047223,-207.317476,0.00040821,28]
[408284164,1773351047232,-207.317476,0.00040821,28]
[408284165,1773351047242,-207.317476,0.00040821,28]
[408284166,1773351047251,-507.0,0.00040897,24]
[408284167,1773351047261,-31934.61928543,0.00041,30]
[408284168,1773351047270,-843.0,0.00041096,120]
[408284169,1773351047279,-375.06315449,0.00041096,2]
[408284170,1773351047289,-2801.58939117,0.00041183,70]
[408284171,1773351047298,-1999.0,0.00041232,120]
[408284172,1773351047308,-3547.71,0.00041232,120]
[408284173,1773351047317,-1999.0,0.00041643,120]
[408284174,1773351047327,-3547.71,0.00041643,120]
[408284175,1773351047336,-843.0,0.00041644,120]
[408284176,1773351047346,-414.0,0.0004177,2]
[408284177,1773351047355,-169.44,0.000418,30]
[408284178,1773351047368,-608.89713279,0.00042,2]
[408284179,1773351047378,-3544.0,0.00042,120]
[408284180,1773351047388,-1999.0,0.00042054,120]
[408284181,1773351047663,-3547.71,0.00042054,120]
[408284182,1773351047680,-675.01,0.00042192,120]
[408284183,1773351047695,-1999.0,0.00042465,120]
[408284184,1773351047705,-3547.71,0.00042465,120]
[408284185,1773351047714,-4498.33,0.00042546,120]
[408284186,1773351047724,-255.07,0.00042546,120]
[408284187,1773351047734,-702.15,0.000426,30]
[408284188,1773351047743,-1999.0,0.00042876,120]
[408284189,1773351047753,-3547.71,0.00042876,120]
[408284190,1773351047762,-400.16,0.00042876,120]
[408284191,1773351047772,-400.16,0.00042876,120]
[408284192,1773351047781,-400.16,0.00042876,120]
[408284193,1773351047790,-400.16,0.00042876,120]
[408284194,1773351047800,-158.861458,0.00042882,120]
[408284195,1773351047811,-158.861458,0.00042882,120]
[408284196,1773351047820,-158.861458,0.00042882,120]
[408284197,1773351047830,-158.861458,0.00042882,120]
[408284198,1773351047839,-151.0,0.00042882,120]
[408284199,1773351047852,-151.0,0.00042882,120]
[408284200,1773351047861,-151.0,0.00042882,120]
[408284201,1773351047871,-151.0,0.00042882,7]
[408284202,1773351047880,-25000.0,0.00042882,15]
[408284203,1773351047890,-25000.0,0.00042891,15]
[408284204,1773351047900,-25000.0,0.000429,15]
[408284205,1773351047910,-16801.59937492,0.000429,15]
[408284206,1773351047919,-300.0,0.0004299,2]
[408284207,1773351047929,-306.96741301,0.0004299,2]
[408284208,1773351047938,-857.12196779,0.0004299,2]
[408284209,1773351047947,-459.91927107,0.0004299,2]
[408284210,1773351047957,-302.33355981,0.0004299,2]
[408284211,1773351047966,-520.22493478,0.0004299,2]
[408284212,1773351047975,-307.19554063,0.0004299,2]
[408284213,1773351047985,-300.0,0.0004299,2]
[408284214,1773351047994,-346.51232205,0.0004299,2]
[408284215,1773351048004,-308.23791899,0.0004299,2]
[408284216,1773351048015,-300.0,0.0004299,2]
[408284217,1773351048025,-448.04173909,0.0004299,2]
[408284218,1773351048035,-300.0,0.0004299,2]
[408284219,1773351048044,-1085.47073912,0.0004299,2]
[408284220,1773351048054,-300.0,0.0004299,2]
[408284221,1773351048065,-300.00000001,0.0004299,2]
[408284222,1773351048075,-1085.47073912,0.0004299,2]
[408284223,1773351048084,-300.0,0.0004299,2]
[408284224,1773351048094,-1085.47073912,0.0004299,2]
[408284225,1773351048105,-300.0,0.0004299,2]
[408284226,1773351048115,-1085.47073911,0.0004299,2]